bitfinex/quotes_ETHUSD_20230119
["timestamp","ask_amount","ask_price","bid_price","bid_amount"]
[1674139573795,0.066,1529.0,1528.4,6.54273]
[1674139574006,3.9643549,1529.0,1528.4,7.3992756]
[1674139574646,3.9643549,1529.0,1528.4,0.8565456]
[1674139574852,3.9643549,1529.0,1528.4,3.0]
[1674139575378,10.5047249,1529.0,1528.4,3.0]
[1674139575623,10.5047249,1529.0,1528.3,0.066]
[1674139575624,3.29174759,1528.9,1528.3,0.066]
[1674139575857,4.29174759,1528.8,1528.2,0.066]
[1674139576007,3.62092235,1528.8,1528.1,6.61003]
[1674139576220,0.32917476,1528.8,1528.2,13.45007361]
[1674139576437,0.066,1528.9,1528.2,16.44482759]
[1674139576694,3.066,1529.1,1528.3,2.04321406]
[1674139576848,3.066,1529.2,1528.5,13.08447]
[1674139577057,11.45063243,1529.3,1528.6,3.29174759]
[1674139577422,0.066,1529.3,1528.8,13.0821]
[1674139577591,0.066,1529.6,1528.9,2.033]
[1674139577808,6.53751,1529.7,1529.1,13.07924]
[1674139577809,0.066,1529.7,1529.1,13.07924]
[1674139578083,11.3846,1529.8,1529.3,6.53875]
[1674139578084,11.4506,1529.8,1529.3,6.53875]
[1674139578208,3.35774759,1529.8,1529.3,6.60475]
[1674139578416,3.29174759,1529.8,1529.3,6.60475]
[1674139578684,0.33577476,1529.8,1529.3,13.14368]
[1674139578838,18.84410091,1530.1,1529.4,6.53826]
[1674139579046,3.29174759,1530.0,1529.4,6.60426]
[1674139579319,0.32917476,1529.9,1529.4,6.60426]
[1674139579686,0.32917476,1529.9,1529.4,7.60426]
[1674139579895,0.066,1530.1,1529.4,17.43451759]
[1674139580163,0.18969359,1530.2,1529.5,3.29174759]
[1674139580471,0.12369359,1530.2,1529.7,13.0744]
[1674139580692,0.12369359,1530.2,1529.7,13.1404]
[1674139580903,0.12369359,1530.2,1529.7,2.66296076]
[1674139581055,0.12369359,1530.2,1529.6,9.60346]
[1674139581264,3.41544118,1530.2,1529.6,6.60346]
[1674139581522,3.29174759,1530.1,1529.6,0.066]
[1674139581734,3.62092235,1530.0,1529.5,0.5565]
[1674139581943,3.62092235,1530.0,1529.5,0.4905]
[1674139582316,3.62092235,1530.0,1529.4,8.09475]
[1674139582525,3.62092235,1530.0,1529.4,9.367613]
[1674139582989,3.62092235,1530.0,1529.4,8.367613]
[1674139583417,3.29174759,1529.9,1529.4,0.066]
[1674139583573,3.29174759,1529.8,1529.3,0.066]
[1674139583796,4.62092235,1529.7,1529.1,6.60565]
[1674139584015,3.62092235,1529.7,1529.1,6.60565]
[1674139584386,3.62092235,1529.7,1529.1,13.14544]
[1674139584387,0.32917476,1529.7,1529.1,13.14544]
[1674139584558,0.066,1529.9,1529.2,4.29174759]
[1674139584897,4.78779448,1529.9,1529.3,10.25948235]
[1674139585086,4.78779448,1529.9,1529.3,13.57266476]
[1674139585419,4.78779448,1529.9,1529.3,6.60456]
[1674139585596,8.07954207,1529.9,1529.3,6.60456]
[1674139585807,3.29174759,1529.8,1529.3,0.066]
[1674139586015,3.29174759,1529.7,1529.1,6.60574]
[1674139586231,0.32917476,1529.6,1529.1,6.60574]
[1674139586543,0.32917476,1529.6,1529.1,0.066]
[1674139586725,0.32917476,1529.6,1529.1,3.0]
[1674139587519,0.32917476,1529.6,1529.0,0.066]
[1674139587520,3.29174759,1529.5,1529.0,0.066]
[1674139587709,4.62092235,1529.4,1528.8,0.066]
[1674139587880,0.32917476,1529.4,1528.9,13.08094]
[1674139588094,0.066,1529.7,1528.9,16.43868759]
[1674139588304,1.0,1529.7,1529.0,1.0]
[1674139588563,0.1,1529.6,1529.1,6.53973]
[1674139588738,12.04743691,1529.9,1529.1,6.60573]
[1674139588944,3.0,1529.8,1529.1,6.60573]
[1674139589409,3.29174759,1529.7,1529.1,7.60573]
[1674139589595,0.62917476,1529.7,1529.1,13.54046347]
[1674139589821,2.51072691,1529.9,1529.1,22.11325347]
[1674139589989,5.07954207,1529.9,1529.2,3.0]
[1674139590201,0.066,1529.9,1529.3,6.8388]
[1674139590572,11.5128,1530.0,1529.5,6.53774]
[1674139590730,11.5128,1530.0,1529.5,0.066]
[1674139590731,14.80454759,1530.0,1529.5,0.066]
[1674139590942,1.48045476,1529.9,1529.4,6.53842]
[1674139591156,11.5128,1530.0,1529.5,3.29174759]
[1674139591465,11.5128,1530.0,1529.7,1.0]
[1674139591710,11.5128,1530.0,1529.7,6.5371]
[1674139591948,15.95582759,1530.0,1529.7,0.066]
[1674139592249,1.0,1529.9,1529.4,6.60424]
[1674139592567,4.29174759,1529.9,1529.4,0.066]
[1674139592777,4.29174759,1529.9,1529.3,6.6048]
[1674139592778,0.42917476,1529.8,1529.3,6.6048]
[1674139595135,1.42917476,1529.8,1529.3,6.6048]
[1674139595384,4.72092235,1529.8,1529.3,6.6048]
[1674139595817,4.72092235,1529.8,1529.3,0.066]
[1674139595818,3.29174759,1529.7,1529.3,0.066]
[1674139596022,0.32917476,1529.6,1529.2,6.60504]
[1674139596237,0.32917476,1529.6,1529.2,7.60504]
[1674139596613,0.49517476,1529.8,1529.2,14.1444]
[1674139597003,3.42917476,1529.8,1529.2,14.1444]
[1674139597343,3.42917476,1529.8,1529.2,13.1444]
[1674139598185,6.72092235,1529.8,1529.2,13.1444]
[1674139598396,0.67209224,1529.7,1529.2,13.1444]
[1674139598643,0.67209224,1529.7,1529.2,6.60504]
[1674139599337,3.49517476,1529.8,1529.3,1.0]
[1674139599544,6.72092235,1529.8,1529.2,13.1444]
[1674139599812,13.32383235,1529.8,1529.2,13.1444]
[1674139600348,1.0,1529.6,1529.2,13.1444]
[1674139600655,0.1,1529.5,1529.2,0.066]
[1674139600868,0.1,1529.5,1529.1,6.60544]
[1674139601685,0.066,1529.6,1529.1,13.14523]
[1674139601880,10.03208476,1529.8,1529.1,13.14523]
[1674139602112,3.29174759,1529.7,1529.1,13.14523]
[1674139602329,3.29174759,1529.7,1529.1,15.113747]
[1674139604243,3.29174759,1529.7,1529.1,13.14523]
[1674139604244,9.82907759,1529.7,1529.1,13.14523]
[1674139604569,9.89507759,1529.7,1529.1,13.14523]
[1674139605708,3.29174759,1529.6,1529.1,13.14523]
[1674139605919,3.29174759,1529.6,1529.1,6.60544]
[1674139606130,0.32917476,1529.5,1529.1,6.60544]
[1674139606359,3.29174759,1529.4,1529.1,0.066]
[1674139606551,3.29174759,1529.4,1529.0,6.76934]
[1674139607485,6.60408,1529.5,1529.1,1.0]
[1674139607697,0.066,1529.5,1529.1,14.07918]
[1674139607913,0.066,1529.6,1529.1,14.14518]
[1674139608122,6.60355,1529.7,1529.1,14.14518]
[1674139608391,6.60355,1529.7,1529.1,19.68277699]
[1674139608392,3.0,1529.6,1529.1,19.68277699]
[1674139609282,11.57473284,1529.7,1529.1,19.68277699]
[1674139609502,11.57473284,1529.7,1529.2,1.9682777]
[1674139609503,0.066,1529.7,1529.2,1.9682777]
[1674139609672,0.49517476,1529.8,1529.3,19.61638]
[1674139609867,0.49517476,1529.8,1529.3,19.68238]
[1674139609868,3.42917476,1529.8,1529.3,19.68238]
[1674139610079,0.42917476,1529.8,1529.3,19.68238]
[1674139610923,1.11274567,1529.8,1529.3,19.68238]
[1674139611096,1.87583206,1529.8,1529.3,19.68238]
[1674139611410,0.74957091,1529.9,1529.4,1.0]
[1674139611725,57.70834532,1530.0,1529.5,13.07582]
[1674139611939,2.44268062,1529.9,1529.5,13.14182]
[1674139612086,16.6393985,1530.0,1529.5,13.14182]
[1674139612298,11.5128,1530.0,1529.5,20.994082]
[1674139612570,11.5128,1530.0,1529.8,13.0736]
[1674139612712,11.5128,1530.0,1529.8,19.6764]
[1674139614152,11.5128,1530.0,1529.8,6.6028]
[1674139614507,13.51785644,1530.0,1529.8,0.066]
[1674139614838,13.51785644,1530.0,1529.7,13.14031]
[1674139614839,12.83428553,1530.0,1529.7,13.14031]
[1674139615046,12.19637091,1530.0,1529.7,13.14031]
[1674139615402,11.5128,1530.0,1529.7,13.14031]
[1674139616534,12.19637091,1530.0,1529.7,13.14031]
[1674139616750,12.19637091,1530.0,1529.7,6.60309]
[1674139616957,13.6533775,1530.0,1529.7,6.60309]
[1674139617183,14.67186191,1530.0,1529.7,6.60309]
[1674139617610,13.6533775,1530.0,1529.7,6.60309]
[1674139619026,14.67186191,1530.0,1529.7,0.066]
[1674139619250,1.0,1529.8,1529.6,6.60325]
[1674139619468,3.91554161,1529.9,1529.6,0.066]
[1674139619469,2.2167571,1529.9,1529.6,0.066]
[1674139619704,2.1507571,1529.9,1529.5,6.60396]
[1674139619892,0.22167571,1529.8,1529.5,13.14192]
[1674139620106,0.90524662,1529.8,1529.5,6.60396]
[1674139620375,0.09052466,1529.7,1529.5,6.60396]
[1674139620651,0.22167571,1529.8,1529.5,6.60396]
[1674139621159,0.22167571,1529.8,1529.5,13.14204]
[1674139621331,13.21485532,1530.0,1529.5,13.14204]
[1674139622275,13.21485532,1530.0,1529.5,6.60396]
[1674139622276,4.7217591,1529.9,1529.5,6.60396]
[1674139622450,2.43001151,1529.8,1529.5,0.066]
[1674139622600,0.24300115,1529.7,1529.4,6.60415]
[1674139624631,0.24300115,1529.7,1529.4,0.066]
[1674139624632,11.77403406,1529.7,1529.4,0.066]
[1674139624816,11.77403406,1529.7,1529.2,0.066]
[1674139624817,11.25961135,1529.6,1529.2,0.066]
[1674139625052,11.25961135,1529.6,1529.1,6.53949]
[1674139625053,4.41770873,1529.5,1529.1,6.60549]
[1674139625441,11.63938964,1529.5,1529.1,0.066]
[1674139625698,1.43023485,1529.4,1529.0,6.7697]
[1674139625916,5.8859214,1529.4,1529.0,6.7697]
[1674139626070,1.0,1529.3,1529.0,6.7697]
[1674139626650,7.29174759,1529.3,1529.0,0.2295]
[1674139626863,7.29174759,1529.3,1529.0,0.1635]
[1674139626864,4.02092235,1529.2,1529.0,0.1635]
[1674139627173,7.75324826,1529.1,1529.0,0.1635]
[1674139627383,0.163,1529.0,1528.4,0.15729852]
[1674139627601,6.54075,1528.9,1528.4,0.09129852]
[1674139627745,6.60675,1528.9,1528.4,0.09129852]
[1674139627957,1.0,1528.8,1528.4,0.09129852]
[1674139628378,7.54112,1528.8,1528.4,0.09129852]
[1674139628646,0.754112,1528.7,1528.4,0.09129852]
[1674139629527,3.35774759,1528.8,1528.4,0.09129852]
[1674139629819,3.29174759,1528.8,1528.4,0.09129852]
[1674139630684,4.29174759,1528.7,1528.4,0.09129852]
[1674139631369,3.29174759,1528.7,1528.4,0.09129852]
[1674139633107,9.83326759,1528.7,1528.4,0.09129852]
[1674139633312,0.98332676,1528.6,1528.4,0.09129852]
[1674139634017,1.98332676,1528.6,1528.4,0.09129852]
[1674139634178,4.29174759,1528.6,1528.4,0.09129852]
[1674139634389,3.29174759,1528.5,1528.4,0.09129852]
[1674139634604,9.83410759,1528.5,1528.4,0.09129852]
[1674139634818,16.44246759,1528.5,1528.4,0.09129852]
[1674139635740,19.44246759,1528.5,1528.4,0.09129852]
[1674139635943,22.83170735,1528.5,1528.4,0.09129852]
[1674139637204,23.06170735,1528.5,1528.4,0.09129852]
[1674139639532,22.83170735,1528.5,1528.4,0.09129852]
[1674139639747,22.83170735,1528.5,1528.4,0.04129852]
[1674139639994,16.28934735,1528.5,1528.4,0.04129852]
[1674139640711,0.066,1528.5,1528.4,0.04129852]
[1674139640923,0.066,1528.6,1528.4,0.04129852]
[1674139641096,13.1488,1528.8,1528.4,0.04129852]
[1674139641306,1.31488,1528.7,1528.4,0.04129852]
[1674139641548,3.35774759,1528.8,1528.4,0.04129852]
[1674139641738,3.29174759,1528.8,1528.4,0.04129852]
[1674139641965,0.002,1528.8,1528.4,7.58404852]
[1674139642195,10.066,1528.9,1528.5,0.75840485]
[1674139642366,3.0,1528.8,1528.5,7.30057485]
[1674139642579,3.0,1528.8,1528.5,13.90893485]
[1674139643211,3.0,1528.8,1528.5,13.15053]
[1674139646153,6.29174759,1528.8,1528.5,0.066]
[1674139646363,7.01468002,1528.8,1528.4,6.65004852]
[1674139647140,3.72293243,1528.8,1528.4,0.10729852]
[1674139647356,13.48980002,1528.8,1528.4,0.04129852]
[1674139647565,22.15350002,1528.8,1528.4,0.04129852]
[1674139647788,3.29174759,1528.7,1528.4,0.04129852]
[1674139647929,20.37560759,1528.6,1528.4,0.04129852]
[1674139648307,3.29174759,1528.5,1528.4,0.04129852]
[1674139648470,18.48632159,1528.5,1528.4,0.04129852]
[1674139648666,18.55232159,1528.5,1528.4,0.04129852]
[1674139648886,19.20925402,1528.5,1528.4,0.04129852]
[1674139649351,41.20925402,1528.5,1528.4,0.04129852]
[1674139649571,44.20925402,1528.5,1528.4,0.04129852]
[1674139649718,45.57025402,1528.5,1528.4,0.04129852]
[1674139651254,23.57025402,1528.5,1528.4,0.04129852]
[1674139652271,23.80025402,1528.5,1528.4,0.04129852]
[1674139653916,1.90002195,1528.3,1528.2,0.09129852]
[1674139654128,51.18439954,1528.3,1528.2,0.09129852]
[1674139654356,29.25039954,1528.3,1528.2,0.09129852]
[1674139654603,19.49318954,1528.3,1528.2,0.09129852]
[1674139654881,23.95327954,1528.3,1528.2,0.09129852]
[1674139655186,28.13450928,1528.3,1528.2,0.09129852]
[1674139655616,35.33465171,1528.3,1528.2,0.09129852]
[1674139656321,28.79144171,1528.3,1528.2,0.09129852]
[1674139656478,23.95327954,1528.3,1528.2,0.09129852]
[1674139656696,11.11832195,1528.3,1528.2,0.09129852]
[1674139657809,0.11502195,1528.3,1528.2,0.09129852]
[1674139658025,0.04902195,1528.3,1528.2,0.09129852]
[1674139658501,0.04902195,1528.3,1528.2,14.12057852]
[1674139658810,0.066,1528.6,1528.2,18.98463837]
[1674139659122,30.336,1528.8,1528.2,17.62663837]
[1674139659297,0.066,1528.8,1528.2,17.62463837]
[1674139659489,21.0731,1528.9,1528.4,1.367]
[1674139659701,10.066,1528.9,1528.5,13.0845]
[1674139660051,10.066,1528.9,1528.5,14.5175]
[1674139660224,10.066,1528.9,1528.5,13.1505]
[1674139660437,4.29174759,1528.8,1528.5,0.066]
[1674139660648,3.29174759,1528.7,1528.2,14.56129852]
[1674139660891,3.72092235,1528.7,1528.2,21.10470852]
[1674139661418,3.066,1528.8,1528.2,21.10470852]
[1674139661756,3.0,1528.7,1528.2,21.10470852]
[1674139661936,3.066,1528.8,1528.4,6.54258]
[1674139662149,3.0,1528.8,1528.4,13.15136]
[1674139662338,3.002,1528.8,1528.6,6.54193]
[1674139662550,3.0,1528.8,1528.6,6.60793]
[1674139662969,10.06325394,1528.9,1528.6,15.119083]
[1674139663180,0.066,1528.9,1528.7,1.367]
[1674139663388,0.68357091,1529.1,1528.6,16.486083]
[1674139663608,1.45852191,1529.1,1528.6,16.486083]
[1674139664021,2.47700632,1529.1,1528.6,16.486083]
[1674139664460,3.62124146,1529.1,1528.6,14.51686]
[1674139664638,1.68357091,1529.0,1528.6,14.51686]
[1674139664850,1.68357091,1529.0,1528.6,6.60793]
[1674139665061,4.68357091,1529.0,1528.6,6.60793]
[1674139665277,4.45962626,1528.9,1528.6,6.60793]
[1674139665587,3.68357091,1528.9,1528.6,6.60793]
[1674139665959,0.68357091,1528.9,1528.6,6.60793]
[1674139666266,4.08448441,1529.0,1528.6,8.059638]
[1674139666267,10.06805532,1529.0,1528.6,8.059638]
[1674139666477,9.04957091,1529.0,1528.6,15.968568]
[1674139666638,5.366,1529.0,1528.9,1.0]
[1674139666842,5.366,1529.0,1528.9,9.085515]
[1674139667070,5.366,1529.0,1528.9,14.692165]
[1674139667317,5.366,1529.0,1528.9,16.057165]
[1674139669712,5.366,1529.0,1528.9,0.066]
[1674139669930,5.366,1529.0,1528.7,7.9743]
[1674139670097,5.366,1529.0,1528.7,6.6073]
[1674139670568,6.04957091,1529.0,1528.7,6.6073]
[1674139670936,5.366,1529.0,1528.7,6.6073]
[1674139671203,6.37280553,1529.0,1528.7,6.6073]
[1674139671374,7.05637644,1529.0,1528.7,0.066]
[1674139671589,3.0,1528.9,1528.6,6.5595]
[1674139672359,4.00563764,1528.9,1528.6,6.5595]
[1674139672506,5.00563764,1528.9,1528.6,6.5595]
[1674139672721,4.07163764,1528.9,1528.6,0.066]
[1674139672931,4.00563764,1528.9,1528.5,6.60799]
[1674139673287,4.68920855,1528.9,1528.5,6.60799]
[1674139673465,4.00563764,1528.9,1528.5,6.60799]
[1674139674108,4.68920855,1528.9,1528.5,6.60799]
[1674139674977,11.29240731,1528.8,1528.5,0.066]
[1674139675140,6.29174759,1528.7,1528.3,0.066]
[1674139675356,14.71210923,1528.7,1528.2,6.65081852]
[1674139675560,14.71210923,1528.7,1528.2,6.64881852]
[1674139675820,14.71210923,1528.7,1528.2,6.65081852]
[1674139676140,1.47121092,1528.6,1528.2,6.65081852]
[1674139678550,11.30490851,1528.6,1528.2,0.10729852]
[1674139678711,11.37090851,1528.6,1528.2,0.04129852]
[1674139681189,12.05447942,1528.6,1528.2,0.04129852]
[1674139681407,8.95673757,1528.5,1528.2,0.04129852]
[1674139681612,4.29174759,1528.4,1528.2,0.04129852]
[1674139681799,10.83452759,1528.4,1528.2,0.04129852]
[1674139682024,3.0,1528.3,1528.2,0.04129852]
[1674139682411,4.0,1528.3,1528.2,0.04129852]
[1674139682652,4.39005276,1528.3,1528.2,0.04129852]
[1674139683493,7.68180035,1528.3,1528.2,0.04129852]
[1674139683683,15.29101035,1528.3,1528.2,0.04129852]
[1674139683897,14.29101035,1528.3,1528.2,0.04129852]
[1674139684425,22.85815278,1528.3,1527.9,0.10387809]
[1674139684774,4.72084862,1528.2,1527.9,0.10387809]
[1674139684946,23.04983367,1528.3,1527.9,0.10387809]
[1674139684947,26.27870035,1528.3,1527.9,6.64874809]
[1674139685139,13.066,1528.3,1527.9,13.25967809]
[1674139687023,3.29174759,1528.2,1527.9,0.16987809]
[1674139687173,6.54407,1528.1,1527.9,0.10387809]
[1674139687549,8.24803176,1528.1,1527.9,0.10387809]
[1674139687850,0.066,1528.1,1527.9,6.64878809]
[1674139688061,0.066,1528.3,1527.9,13.25971809]
[1674139688237,38.8009,1528.5,1527.9,13.25971809]
[1674139688238,30.336,1528.5,1527.9,13.25971809]
[1674139688442,9.57644,1528.4,1527.9,13.25971809]
[1674139688644,1.0,1528.3,1527.9,13.25971809]
[1674139688850,6.54373,1528.2,1527.9,0.16987809]
[1674139689067,3.29174759,1528.1,1527.9,0.10387809]
[1674139689329,16.38074759,1528.0,1527.9,0.10387809]
[1674139689536,19.44674759,1528.0,1527.9,0.10387809]
[1674139690117,25.99124759,1528.0,1527.9,0.10387809]
[1674139692863,12.90224759,1528.0,1527.9,0.10387809]
[1674139693073,3.066,1528.0,1527.9,0.10387809]
[1674139693285,3.0,1528.0,1527.9,0.10387809]
[1674139693950,8.54140489,1528.0,1527.9,0.10387809]
[1674139694142,28.23090489,1528.0,1527.9,0.10387809]
[1674139694353,8.60740489,1528.0,1527.9,0.10387809]
[1674139694667,3.066,1528.0,1527.9,0.10387809]
[1674139694911,3.0,1528.0,1527.9,0.10387809]
[1674139696243,0.066,1528.1,1527.9,1.09587809]
[1674139696416,0.066,1528.2,1527.9,1.09587809]
[1674139696627,16.60944,1528.3,1527.9,2.62163282]
[1674139696882,19.90118759,1528.3,1527.9,9.16647282]
[1674139697095,19.90118759,1528.3,1527.9,9.23247282]
[1674139697888,19.90118759,1528.3,1527.9,8.24047282]
[1674139698150,19.90118759,1528.3,1527.9,6.71471809]
[1674139698151,23.99219335,1528.3,1527.9,6.71471809]
[1674139699917,10.066,1528.3,1527.9,13.25964809]
[1674139700125,0.066,1528.3,1527.9,19.80457809]
[1674139700336,0.066,1528.4,1527.9,19.80457809]
[1674139700625,27.28842,1528.5,1528.0,1.98045781]
[1674139700836,22.40926759,1528.5,1528.0,15.06892781]
[1674139701034,22.40926759,1528.5,1528.0,15.13492781]
[1674139701284,22.40926759,1528.5,1528.1,1.51349278]
[1674139701504,22.40926759,1528.5,1528.1,8.05753278]
[1674139701734,22.40926759,1528.5,1528.1,6.61004]
[1674139702107,9.90026759,1528.5,1528.1,6.61004]
[1674139702751,0.066,1528.5,1528.1,6.61004]
[1674139702942,3.0,1528.5,1528.1,13.15411]
[1674139703362,3.0,1528.5,1528.1,15.778368]
[1674139703985,3.0,1528.5,1528.1,22.322438]
[1674139704197,19.11697,1528.6,1528.1,22.322438]
[1674139704198,0.066,1528.6,1528.1,22.322438]
[1674139704404,3.0,1528.6,1528.1,22.322438]
[1674139704656,3.0,1528.6,1528.2,1.0]
[1674139704884,3.0,1528.6,1528.3,19.72939]
[1674139705064,3.0,1528.6,1528.3,19.79539]
[1674139705873,3.066,1528.7,1528.3,19.79539]
[1674139706104,3.0,1528.7,1528.3,19.79539]
[1674139706971,7.62482709,1528.7,1528.3,19.69539]
[1674139707183,1.0,1528.6,1528.3,6.60913]
[1674139707510,18.0592385,1528.6,1528.3,0.066]
[1674139707659,14.64010144,1528.5,1528.1,0.066]
[1674139707863,15.36303387,1528.5,1528.0,21.31975]
[1674139708073,16.04660478,1528.5,1528.0,21.31975]
[1674139708345,2.60466048,1528.4,1528.0,21.31975]
[1674139708935,1.60466048,1528.4,1528.0,21.31975]
[1674139709204,17.41320588,1528.5,1528.0,13.15057583]
[1674139709355,16.39472147,1528.5,1528.0,13.15057583]
[1674139709784,16.39587781,1528.5,1528.0,13.15057583]
[1674139710343,4.75577637,1528.5,1528.0,19.69507583]
[1674139710515,3.68357091,1528.5,1528.0,19.69507583]
[1674139710860,4.70205532,1528.5,1528.0,19.69507583]
[1674139711078,4.7512905,1528.4,1528.0,0.066]
[1674139711235,7.9753185,1528.3,1527.9,6.71447809]
[1674139711451,14.5845885,1528.3,1527.9,6.71447809]
[1674139711760,1.45845885,1528.2,1527.9,6.71447809]
[1674139713174,2.14202976,1528.2,1527.9,6.71447809]
[1674139714594,12.99590176,1528.2,1527.9,0.16987809]
[1674139714860,4.460461,1528.1,1527.9,0.10387809]
[1674139715172,10.84368018,1528.1,1527.9,0.10387809]
[1674139715392,10.90968018,1528.1,1527.9,0.10387809]
[1674139715747,3.066,1528.1,1527.9,0.10387809]
[1674139716015,4.52445885,1528.2,1527.9,0.10387809]
[1674139716190,4.45845885,1528.2,1527.9,0.10387809]
[1674139716381,3.0,1528.2,1527.9,6.64874809]
[1674139716593,3.0,1528.2,1527.9,6.71474809]
[1674139717388,3.0,1528.2,1527.9,13.25967809]
[1674139717893,18.92387091,1528.3,1527.9,13.25967809]
[1674139717894,0.066,1528.3,1527.9,23.09635568]
[1674139718105,12.1662,1528.4,1528.1,19.63201]
[1674139718331,0.066,1528.4,1528.1,19.69801]
[1674139718523,2.7097214,1528.5,1528.1,19.69801]
[1674139718761,3.48680329,1528.5,1528.2,7.91043]
[1674139718956,3.48680329,1528.5,1528.2,7.97643]
[1674139718957,0.68357091,1528.5,1528.2,7.97643]
[1674139719148,5.47913579,1528.5,1528.2,7.97643]
[1674139719359,4.76805532,1528.5,1528.2,10.082869]
[1674139719561,4.70205532,1528.5,1528.2,8.715869]
[1674139720200,0.68357091,1528.5,1528.3,0.8715869]
[1674139720435,1.46079041,1528.5,1528.3,0.8715869]
[1674139720641,1.46079041,1528.5,1528.3,13.9577269]
[1674139720810,1.46079041,1528.5,1528.3,13.15214]
[1674139721024,0.68357091,1528.5,1528.3,13.15214]
[1674139721885,1.70205532,1528.5,1528.3,13.15214]
[1674139722114,0.68357091,1528.4,1528.3,13.15214]
[1674139722323,0.68357091,1528.4,1528.3,0.066]
[1674139722497,2.00940524,1528.4,1528.2,0.066]
[1674139722706,2.00940524,1528.4,1528.0,13.15449]
[1674139723175,0.99092083,1528.4,1528.0,13.15449]
[1674139723346,2.48098915,1528.4,1528.0,13.15449]
[1674139723563,1.4625084,1528.3,1528.0,13.15449]
[1674139724072,1.4625084,1528.3,1528.0,0.066]
[1674139724284,2.48099281,1528.3,1527.9,13.25938809]
[1674139724493,0.68519424,1528.3,1527.9,13.25938809]
[1674139724739,2.32755155,1528.3,1527.9,13.25938809]
[1674139724949,1.55011472,1528.3,1527.9,13.25938809]
[1674139725365,1.76967865,1528.4,1527.9,14.61838809]
[1674139725584,3.68519424,1528.4,1527.9,21.16331809]
[1674139725918,0.68519424,1528.4,1528.0,1.356]
[1674139726077,0.75119424,1528.5,1528.2,6.54356]
[1674139726285,2.48105281,1528.5,1528.2,6.60956]
[1674139726488,1.4625684,1528.4,1528.2,0.066]
[1674139726872,1.4625684,1528.4,1528.1,13.15359]
[1674139727286,1.4625684,1528.4,1528.1,15.259971]
[1674139727889,8.31212865,1528.5,1528.1,15.259971]
[1674139728329,1.68519424,1528.4,1528.1,13.15359]
[1674139728703,0.68519424,1528.3,1528.1,13.15359]
[1674139728913,1.68519424,1528.4,1528.1,13.15359]
[1674139729124,0.68519424,1528.3,1528.1,13.15359]
[1674139729397,1.46282554,1528.3,1528.1,13.15359]
[1674139729906,0.68519424,1528.3,1528.1,13.15359]
[1674139730097,1.46282734,1528.3,1528.1,13.15359]
[1674139730312,0.68519424,1528.2,1528.1,0.066]
[1674139730645,0.68519424,1528.2,1528.0,0.066]
[1674139730813,1.46282734,1528.2,1527.9,13.25952809]
[1674139731023,3.46180724,1528.2,1527.9,13.25952809]
[1674139731250,2.68417414,1528.2,1527.9,13.25952809]
[1674139731868,19.21216591,1528.3,1527.9,13.25952809]
[1674139732376,1.46311922,1528.2,1527.9,13.25952809]
[1674139733356,2.48160363,1528.2,1527.9,6.71459809]
[1674139733569,0.24816036,1528.1,1527.9,6.71459809]
[1674139733778,1.70367865,1528.2,1527.9,6.71459809]
[1674139733988,1.68519424,1528.1,1527.9,6.71459809]
[1674139734600,0.68519424,1528.1,1527.9,6.71459809]
[1674139734808,1.0,1528.0,1527.9,6.71459809]
[1674139735127,9.25408693,1528.0,1527.9,0.16733321]
[1674139735345,12.32008693,1528.0,1527.9,0.10133321]
[1674139735525,11.32008693,1528.0,1527.9,0.10133321]
[1674139735742,24.40908693,1528.0,1527.9,0.10133321]
[1674139735951,9.6105,1528.0,1527.9,0.10133321]
[1674139736219,11.07350633,1528.0,1527.9,0.10133321]
[1674139736616,9.6105,1528.0,1527.9,0.10133321]
[1674139736830,11.07350452,1528.0,1527.9,0.10133321]
[1674139737228,10.29569424,1528.0,1527.9,0.10133321]
[1674139737479,13.51357503,1528.0,1527.9,0.10133321]
[1674139737897,20.05807503,1528.0,1527.9,0.10133321]
[1674139738219,26.60257503,1528.0,1527.9,0.10133321]
[1674139738699,20.05807503,1528.0,1527.9,0.10133321]
[1674139738906,27.62105944,1528.0,1527.9,0.10133321]
[1674139739357,26.60257503,1528.0,1527.9,0.10133321]
[1674139740700,27.61024111,1528.0,1527.9,0.10133321]
[1674139740917,26.60257503,1528.0,1527.9,0.10133321]
[1674139741567,27.61053451,1528.0,1527.9,0.10133321]
[1674139741898,31.92076651,1528.0,1527.9,0.10133321]
[1674139742054,31.23557227,1528.0,1527.9,0.10133321]
[1674139743057,36.42629842,1528.0,1527.9,0.10133321]
[1674139743265,1.86419255,1527.8,1527.7,0.1025629]
[1674139743459,29.25452968,1527.8,1527.7,0.1025629]
[1674139743673,29.32052968,1527.8,1527.7,0.1025629]
[1674139744187,27.85799014,1527.8,1527.7,0.1025629]
[1674139744403,24.56624255,1527.8,1527.7,0.1025629]
[1674139744777,0.07919255,1527.8,1527.7,0.1025629]
[1674139745026,0.01319255,1527.8,1527.7,0.1025629]
[1674139747098,0.01319255,1527.8,1527.7,1.0945629]
[1674139747271,0.01319255,1527.8,1527.7,9.12566277]
[1674139747438,0.01319255,1527.8,1527.7,15.73744277]
[1674139747654,0.01319255,1527.8,1527.7,22.28322277]
[1674139749859,0.01319255,1527.8,1527.7,22.51322277]
[1674139752042,0.01319255,1527.8,1527.7,25.80497036]
[1674139756674,0.01319255,1527.8,1527.7,26.8395925]
[1674139756886,0.01319255,1527.8,1527.7,32.25731055]
[1674139757092,0.01319255,1527.8,1527.7,35.25731055]
[1674139757553,0.01319255,1527.8,1527.7,45.94431055]
[1674139757777,0.01319255,1527.8,1527.7,42.57556291]
[1674139758991,0.68492861,1528.5,1527.8,1.01077574]
[1674139759214,1.45856404,1528.5,1528.0,20.99235]
[1674139759427,1.45856404,1528.5,1528.0,21.05835]
[1674139760157,1.45856404,1528.5,1528.1,3.29174759]
[1674139760502,1.7557305,1528.6,1528.3,19.62941]
[1674139760710,0.68492861,1528.6,1528.3,21.681351]
[1674139761043,10.10921907,1528.8,1528.5,13.08472]
[1674139761254,1.45849141,1528.7,1528.5,13.15072]
[1674139761403,1.80921907,1528.8,1528.5,13.15072]
[1674139761618,1.45806618,1528.7,1528.5,13.15072]
[1674139761871,0.68492861,1528.7,1528.5,13.15072]
[1674139762429,1.45807833,1528.7,1528.5,13.15072]